{"text_format":"1","workbook":"xlsx","n_sheets":4,"sheets":["AMAS Rating Scale","Online AMAS Scale","8-9 yr. old Norms","11-13 yr. old Norms"],"not_rendered":{"charts":4,"images":4,"macros":1,"external_links":0,"defined_names":0,"comments":0,"pivot_tables":0},"unopened":[],"bounds":{"document_bytes":16777216,"sheet_cells":100000,"rows_first":2000,"rows_last":500,"rows_between":2000,"halvings":0,"cell_chars":16384,"cell_head_chars":4096},"cells_cut":0,"cells_raw":0,"read":"whole","date_system":"1900"}

{"sheet":"AMAS Rating Scale","index":0,"n_rows":1,"n_cols":1,"rows_kept":1,"cut":false,"hidden":false,"merged":[]}
["Abbreviated Math Anxiety Scale"]

{"sheet":"Online AMAS Scale","index":1,"n_rows":15,"n_cols":8,"rows_kept":15,"cut":false,"hidden":false,"merged":[]}
["Abbreviated Math Anxiety Scale",null,null,null,null,null,null,1]
["Instructions:  Please give each sentence a score in terms of how anxious you would feel in each sitution.  Use the scale at the right side and choose a number rating (1 - 5) which you think best descibes how you feel.",null,null,null,null,null,null,2]
[null,"Input Rating",null,null,null,null,null,3]
["1.  Having to complete a worksheet by yourself.",null,null,null,null,null,null,4]
["2.  Thinking about a maths test the day before you take it.",null,null,null,null,null,null,5]
["3.  Watching the teacher work out a maths problem on the board."]
["4.  Taking a maths test."]
["5. Being given maths homework with lots of difficult questions that you have to hand in the next day."]
["6.  Listening to the teacher talk for a long time in maths."]
["7.  Listening to another child in your class explain a maths problem."]
["8.  Finding out you are going to have a surprise maths quiz when you start your maths lesson."]
["9.  Starting a new topic in maths."]
["Total: ",{"$f":"SUM(B4:B12)","v":0}]
["Learning: ",{"$f":"SUM(B4,B6,B9,B10,B12)","v":0}]
["Evaluation: ",{"$f":"SUM(B5,B7,B8,B11)","v":0}]

{"sheet":"8-9 yr. old Norms","index":2,"n_rows":9,"n_cols":14,"rows_kept":9,"cut":false,"hidden":false,"merged":[]}
["Abbreviated Math Anxiety Scale"]
[null,"Total","Learning","Evaluation",null,null,null,null,null,null,null,"Total","Learning","Evaluation"]
["Raw Scores",{"$f":"'Online AMAS Scale'!$B$13","v":0},{"$f":"'Online AMAS Scale'!$B$14","v":0},{"$f":"'Online AMAS Scale'!$B$15","v":0},null,null,null,null,null,null,"Raw Scores",{"$f":"'Online AMAS Scale'!$B$13","v":0},{"$f":"'Online AMAS Scale'!$B$14","v":0},{"$f":"'Online AMAS Scale'!$B$15","v":0}]
["Means",20.7,9.56,11.14,null,null,null,null,null,null,"Means",17.88,8.67,9.2100000000000009]
["SDs",7.49,4.08,4.17,null,null,null,null,null,null,"SDs",7.87,4.26,4.29]
["z-scores",{"$f":"IF(B3=0,\"\",(B3-20.7)/7.49)","v":""},{"$f":"IF(C3=0,\"\",(C3-9.56)/4.08)","v":""},{"$f":"IF(D3=0,\"\",(D3-11.14)/4.17)","v":""},null,null,null,null,null,null,"z-scores",{"$f":"IF(L3=0,\"\",(L3-17.88)/7.87)","v":""},{"$f":"IF(M3=0,\"\",(M3-8.67)/4.26)","v":""},{"$f":"IF(N3=0,\"\",(N3-9.21)/4.29)","v":""}]
["S.S.",{"$f":"100+B6*(15)","v":{"$error":"#VALUE!"}},{"$f":"100+C6*(15)","v":{"$error":"#VALUE!"}},{"$error":"#VALUE!"},null,null,null,null,null,null,"S.S.",{"$f":"100+L6*(15)","v":{"$error":"#VALUE!"}},{"$f":"100+M6*(15)","v":{"$error":"#VALUE!"}},{"$error":"#VALUE!"}]
["%ile",{"$f":"NORMSDIST(B6)*100","v":{"$error":"#VALUE!"}},{"$f":"NORMSDIST(C6)*100","v":{"$error":"#VALUE!"}},{"$error":"#VALUE!"},null,null,null,null,null,null,"%ile",{"$f":"NORMSDIST(L6)*100","v":{"$error":"#VALUE!"}},{"$f":"NORMSDIST(M6)*100","v":{"$error":"#VALUE!"}},{"$error":"#VALUE!"}]
["T-score",{"$f":"50+B6*(10)","v":{"$error":"#VALUE!"}},{"$f":"50+C6*(10)","v":{"$error":"#VALUE!"}},{"$error":"#VALUE!"},null,null,null,null,null,null,"T-score",{"$f":"50+L6*(10)","v":{"$error":"#VALUE!"}},{"$f":"50+M6*(10)","v":{"$error":"#VALUE!"}},{"$error":"#VALUE!"}]

{"sheet":"11-13 yr. old Norms","index":3,"n_rows":9,"n_cols":14,"rows_kept":9,"cut":false,"hidden":false,"merged":[]}
["Abbreviated Math Anxiety Scale"]
[null,"Total","Learning","Evaluation",null,null,null,null,null,null,null,"Total","Learning","Evaluation"]
["Raw Scores",{"$f":"'Online AMAS Scale'!$B$13","v":0},{"$f":"'Online AMAS Scale'!$B$14","v":0},{"$f":"'Online AMAS Scale'!$B$15","v":0},null,null,null,null,null,null,"Raw Scores",{"$f":"'Online AMAS Scale'!$B$13","v":0},{"$f":"'Online AMAS Scale'!$B$14","v":0},{"$f":"'Online AMAS Scale'!$B$15","v":0}]
["Means",21.25,9.57,11.68,null,null,null,null,null,null,"Means",18.8,8.9499999999999993,9.85]
["SDs",7.69,4.29,4.37,null,null,null,null,null,null,"SDs",7.11,3.98,3.98]
["z-scores",{"$f":"IF(B3=0,\"\",(B3-21.25)/7.69)","v":""},{"$f":"IF(C3=0,\"\",(C3-9.57)/4.29)","v":""},{"$f":"IF(D3=0,\"\",(D3-11.68)/4.37)","v":""},null,null,null,null,null,null,"z-scores",{"$f":"IF(L3=0,\"\",(L3-18.8)/7.11)","v":""},{"$f":"IF(M3=0,\"\",(M3-8.95)/3.98)","v":""},{"$f":"IF(N3=0,\"\",(N3-9.85)/3.98)","v":""}]
["S.S.",{"$f":"100+B6*(15)","v":{"$error":"#VALUE!"}},{"$f":"100+C6*(15)","v":{"$error":"#VALUE!"}},{"$error":"#VALUE!"},null,null,null,null,null,null,"S.S.",{"$f":"100+L6*(15)","v":{"$error":"#VALUE!"}},{"$f":"100+M6*(15)","v":{"$error":"#VALUE!"}},{"$error":"#VALUE!"}]
["%ile",{"$f":"NORMSDIST(B6)*100","v":{"$error":"#VALUE!"}},{"$f":"NORMSDIST(C6)*100","v":{"$error":"#VALUE!"}},{"$error":"#VALUE!"},null,null,null,null,null,null,"%ile",{"$f":"NORMSDIST(L6)*100","v":{"$error":"#VALUE!"}},{"$f":"NORMSDIST(M6)*100","v":{"$error":"#VALUE!"}},{"$error":"#VALUE!"}]
["T-score",{"$f":"50+B6*(10)","v":{"$error":"#VALUE!"}},{"$f":"50+C6*(10)","v":{"$error":"#VALUE!"}},{"$error":"#VALUE!"},null,null,null,null,null,null,"T-score",{"$f":"50+L6*(10)","v":{"$error":"#VALUE!"}},{"$f":"50+M6*(10)","v":{"$error":"#VALUE!"}},{"$error":"#VALUE!"}]